Workbook

Sheet tabula (hidden)
C2: "Lielā viktorīna" (tiešsaistē / vebinārā) | 2024.gada 6.oktobris
B3: Grupa | C3: # | D3: Dalībnieks | Raunds | Tēma | Max punkti raundā (bez bonusiem) | E3: 1 | F3: 2 | G3: 3 | H3: 4 | I3: 5 | J3: 6 | K3: 7 | L3: 8 | M3: 9 | N3: 10 | O3: KOPĀ | P3: Laiks kopā | Q3: Pareizās atbildes (max 68) | R3: Vid.laiks uz 1 pareizo atb.
E4: Pavediens | F4: Divas atbildes | G4: Ekspresis | H4: Burtu mīkla | I4: Ķēde | J4: Latvija | K4: Risks: Sporta veidu apraksti | L4: Kas kopīgs? | M4: Liekais pazūd | Citāti | N4: Audio
E5: 150 | F5: 180 | G5: 180 | H5: 150 | I5: 175 | J5: 150 | K5: 120 | L5: 180 | M5: 150 | N5: 150 | O5: =SUM(E5:N5) -> 1585
D6: Vidēji p-ti raundā | E6: =ROUND(AVERAGE(E7:E59),1) -> 76.8 | F6: =ROUND(AVERAGE(F7:F59),1) -> 74.5 | G6: =ROUND(AVERAGE(G7:G59),1) -> 76.5 | H6: =ROUND(AVERAGE(H7:H59),1) -> 56.9 | I6: =ROUND(AVERAGE(I7:I59),1) -> 101.3 | J6: =ROUND(AVERAGE(J7:J59),1) -> 50.6 | K6: =ROUND(AVERAGE(K7:K59),1) -> 31 | L6: =ROUND(AVERAGE(L7:L59),1) -> 91.6 | M6: =ROUND(AVERAGE(M7:M59),1) -> 89.7 | N6: =ROUND(AVERAGE(N7:N59),1) -> 90.5 | O6: =ROUND(AVERAGE(O7:O59),1) -> 739.4
B7: 3 | C7: 1 | D7: Bunkurs_13 | E7: 115 | F7: 140 | G7: 112 | H7: 95 | I7: 155 | J7: 64 | K7: 110 | L7: 149 | M7: 134 | N7: 132 | O7: 1206 | P7: 05 min. 30,702 | Q7: 58 | R7: 05,702 sek.
B8: 1 | C8: 2 | D8: Pundurplanēta | E8: 119 | F8: 136 | G8: 130 | H8: 112 | I8: 159 | J8: 64 | K8: 78 | L8: 168 | M8: 110 | N8: 127 | O8: 1203 | P8: 07 min. 21,470 | Q8: 61 | R8: 07,237 sek.
B9: 1 | C9: 3 | D9: VMR | E9: 93 | F9: 138 | G9: 105 | H9: 85 | I9: 152 | J9: 116 | K9: 59 | L9: 167 | M9: 147 | N9: 91 | O9: 1153 | P9: 07 min. 05,347 | Q9: 59 | R9: 07,209 sek.
B10: 3 | C10: 4 | D10: BUGATTI 21023 | E10: 109 | F10: 67 | G10: 69 | H10: 118 | I10: 143 | J10: 93 | K10: 70 | L10: 131 | M10: 128 | N10: 99 | O10: 1027 | P10: 09 min. 43,818 | Q10: 59 | R10: 09,895 sek.
B11: 1 | C11: 5 | D11: Rupuči, turās! | E11: 92 | F11: 105 | G11: 112 | H11: 75 | I11: 142 | J11: 69 | K11: 72 | L11: 130 | M11: 121 | N11: 70 | O11: 988 | P11: 07 min. 30,116 | Q11: 54 | R11: 08,335 sek.
B12: 3 | C12: 6 | D12: Ļoti labi | E12: 99 | F12: 120 | G12: 58 | H12: 50 | I12: 118 | J12: 67 | K12: 74 | L12: 158 | M12: 127 | N12: 117 | O12: 988 | P12: 09 min. 36,707 | Q12: 56 | R12: 10,298 sek.
B13: 1 | C13: 7 | D13: MārcisS | E13: 115 | F13: 82 | G13: 116 | H13: 63 | I13: 154 | J13: 59 | K13: 52 | L13: 113 | M13: 108 | N13: 114 | O13: 976 | P13: 07 min. 17,356 | Q13: 54 | R13: 08,099 sek.
B14: 1 | C14: 8 | D14: Kņopienei volga! | E14: 118 | F14: 72 | G14: 120 | H14: 105 | I14: 131 | J14: 69 | K14: 10 | L14: 110 | M14: 113 | N14: 114 | O14: 962 | P14: 07 min. 15,233 | Q14: 53 | R14: 08,212 sek.
B15: 2 | C15: 9 | D15: Virsskaņas alus iznīcinātājs | E15: 121 | F15: 79 | G15: 84 | H15: 102 | I15: 122 | J15: 86 | K15: 40 | L15: 89 | M15: 119 | N15: 81 | O15: 923 | P15: 07 min. 49,182 | Q15: 51 | R15: 09,200 sek.
B16: 3 | C16: 10 | D16: Dažas pazudušas skrūvītes | E16: 82 | F16: 124 | G16: 111 | H16: 112 | I16: 120 | J16: 70 | K16: 36 | L16: 116 | M16: 62 | N16: 86 | O16: 919 | P16: 13 min. 06,145 | Q16: 59 | R16: 13,324 sek.
B17: 2 | C17: 11 | D17: HektoraKristaps | E17: 83 | F17: 130 | G17: 110 | H17: 121 | I17: 104 | J17: 69 | K17: 28 | L17: 85 | M17: 107 | N17: 60 | O17: 897 | P17: 07 min. 54,514 | Q17: 50 | R17: 09,490 sek.
B18: 2 | C18: 12 | D18: Kaulini | E18: 95 | F18: 62 | G18: 146 | H18: 43 | I18: 113 | J18: 65 | K18: 49 | L18: 126 | M18: 103 | N18: 83 | O18: 885 | P18: 08 min. 11,247 | Q18: 53 | R18: 09,269 sek.
B19: 2 | C19: 13 | D19: BunS | E19: 57 | F19: 80 | G19: 57 | H19: 96 | I19: 104 | J19: 58 | K19: 60 | L19: 100 | M19: 101 | N19: 114 | O19: 827 | P19: 11 min. 53,381 | Q19: 53 | R19: 13,460 sek.
B20: 3 | C20: 14 | D20: Andris Skuja ne bez čuja | E20: 91 | F20: 102 | G20: 49 | H20: 80 | I20: 119 | J20: 83 | K20: 53 | L20: 61 | M20: 87 | N20: 97 | O20: 822 | P20: 07 min. 53,264 | Q20: 46 | R20: 10,288 sek.
B21: 1 | C21: 15 | D21: PutniņiCūciņas | E21: 66 | F21: 84 | G21: 99 | H21: 60 | I21: 118 | J21: 17 | K21: 66 | L21: 62 | M21: 114 | N21: 130 | O21: 816 | P21: 06 min. 34,854 | Q21: 46 | R21: 08,584 sek.
B22: 3 | C22: 16 | D22: Šveices diaspora | E22: 86 | F22: 75 | G22: 80 | H22: 45 | I22: 100 | J22: 25 | K22: 60 | L22: 110 | M22: 92 | N22: 109 | O22: 782 | P22: 09 min. 59,185 | Q22: 50 | R22: 11,984 sek.
B23: 3 | C23: 17 | D23: Rūķis Stūķis | E23: 46 | F23: 93 | G23: 56 | H23: 48 | I23: 102 | J23: 60 | K23: 31 | L23: 125 | M23: 116 | N23: 104 | O23: 781 | P23: 06 min. 53,472 | Q23: 43 | R23: 09,616 sek.
B24: 3 | C24: 18 | D24: DZ4 | E24: 101 | F24: 91 | G24: 80 | H24: 63 | I24: 98 | J24: 69 | K24: 27 | L24: 26 | M24: 124 | N24: 101 | O24: 780 | P24: 08 min. 07,990 | Q24: 47 | R24: 10,383 sek.
B25: 1 | C25: 19 | D25: LBG | E25: 64 | F25: 99 | G25: 74 | H25: 88 | I25: 116 | J25: 51 | K25: -5 | L25: 139 | M25: 92 | N25: 52 | O25: 770 | P25: 09 min. 09,397 | Q25: 48 | R25: 11,446 sek.
B26: 1 | C26: 20 | D26: Inspektors | E26: 85 | F26: 49 | G26: 64 | H26: 41 | I26: 84 | J26: 48 | K26: 59 | L26: 128 | M26: 85 | N26: 126 | O26: 769 | P26: 10 min. 25,678 | Q26: 50 | R26: 12,514 sek.
B27: 3 | C27: 21 | D27: Saule20 | E27: 108 | F27: 104 | G27: 59 | H27: 37 | I27: 86 | J27: 37 | K27: 103 | L27: 78 | M27: 88 | N27: 59 | O27: 759 | P27: 06 min. 36,566 | Q27: 43 | R27: 09,222 sek.
C28: 22 | D28: Zupa no nekā | E28: 89 | F28: 72 | G28: 108 | H28: 54 | I28: 118 | J28: 43 | K28: 5 | L28: 96 | M28: 59 | N28: 109 | O28: 753 | P28: 10 min. 48,203 | Q28: 51 | R28: 12,710 sek.
C29: 23 | D29: Brilles +1 | E29: 98 | F29: 61 | G29: 56 | H29: 72 | I29: 106 | J29: 47 | K29: 51 | L29: 89 | M29: 86 | N29: 86 | O29: 752 | P29: 11 min. 18,570 | Q29: 49 | R29: 13,848 sek.
C30: 24 | D30: ANNIŅMUIŽA | E30: 84 | F30: 113 | G30: 102 | H30: 26 | I30: 110 | J30: 21 | K30: 2 | L30: 97 | M30: 114 | N30: 80 | O30: 749 | P30: 07 min. 15,271 | Q30: 45 | R30: 09,673 sek.
C31: 25 | D31: Pieci kaķi | E31: 94 | F31: 60 | G31: 62 | H31: 55 | I31: 90 | J31: 77 | K31: 71 | L31: 51 | M31: 82 | N31: 97 | O31: 739 | P31: 09 min. 54,897 | Q31: 48 | R31: 12,394 sek.
C32: 26 | D32: Subarubaru | E32: 86 | F32: 85 | G32: 111 | H32: 60 | I32: 109 | J32: 38 | K32: -44 | L32: 113 | M32: 98 | N32: 80 | O32: 736 | P32: 05 min. 24,793 | Q32: 42 | R32: 07,733 sek.
C33: 27 | D33: ROBO | E33: 55 | F33: 89 | G33: 86 | H33: 73 | I33: 113 | J33: 18 | K33: 46 | L33: 59 | M33: 99 | N33: 88 | O33: 726 | P33: 05 min. 19,597 | Q33: 39 | R33: 08,195 sek.
C34: 28 | D34: GPS | E34: 69 | F34: 55 | G34: 48 | H34: 50 | I34: 67 | J34: 66 | K34: 47 | L34: 94 | M34: 93 | N34: 130 | O34: 719 | P34: 11 min. 13,099 | Q34: 48 | R34: 14,023 sek.
C35: 29 | D35: Trakie Truši | E35: 89 | F35: 74 | G35: 44 | H35: 74 | I35: 114 | J35: 45 | K35: -2 | L35: 90 | M35: 83 | N35: 93 | O35: 704 | P35: 11 min. 36,880 | Q35: 48 | R35: 14,518 sek.
C36: 30 | D36: Stams | E36: 74 | F36: 74 | G36: 93 | H36: 37 | I36: 89 | J36: 73 | K36: 38 | L36: 108 | M36: 30 | N36: 84 | O36: 700 | P36: 09 min. 45,114 | Q36: 46 | R36: 12,720 sek.
C37: 31 | D37: Morgana | E37: 93 | F37: 49 | G37: 56 | H37: 24 | I37: 131 | J37: 28 | K37: 68 | L37: 20 | M37: 111 | N37: 119 | O37: 699 | P37: 07 min. 52,111 | Q37: 43 | R37: 10,979 sek.
C38: 32 | D38: Džins bez tonika | E38: 88 | F38: 35 | G38: 75 | H38: 35 | I38: 97 | J38: 95 | K38: 3 | L38: 74 | M38: 89 | N38: 107 | O38: 698 | P38: 07 min. 38,902 | Q38: 43 | R38: 10,672 sek.
C39: 33 | D39: pigviins | E39: 75 | F39: 49 | G39: 94 | H39: 62 | I39: 70 | J39: 15 | K39: 36 | L39: 111 | M39: 99 | N39: 82 | O39: 693 | P39: 07 min. 09,538 | Q39: 41 | R39: 10,477 sek.
C40: 34 | D40: Pienene | E40: 38 | F40: 106 | G40: 90 | H40: 59 | I40: 111 | J40: 34 | K40: 36 | L40: 72 | M40: 85 | N40: 61 | O40: 692 | P40: 05 min. 45,578 | Q40: 40 | R40: 08,639 sek.
C41: 35 | D41: Lidojošs pingvīnC | E41: 42 | F41: 75 | G41: 88 | H41: 49 | I41: 137 | J41: 66 | K41: 28 | L41: 95 | M41: 69 | N41: 37 | O41: 686 | P41: 06 min. 32,811 | Q41: 41 | R41: 09,581 sek.
C42: 36 | D42: kD | E42: 91 | F42: 24 | G42: 99 | H42: 57 | I42: 61 | J42: 70 | K42: 53 | L42: 99 | M42: 42 | N42: 90 | O42: 686 | P42: 12 min. 01,424 | Q42: 49 | R42: 14,723 sek.
C43: 37 | D43: Marinē divatā | E43: 65 | F43: 90 | G43: 82 | H43: 31 | I43: 78 | J43: 57 | K43: 38 | L43: 68 | M43: 71 | N43: 80 | O43: 660 | P43: 05 min. 56,606 | Q43: 38 | R43: 09,384 sek.
C44: 38 | D44: Pitijs | E44: 97 | F44: 63 | G44: 0 | H44: 65 | I44: 128 | J44: 32 | K44: 20 | L44: 52 | M44: 130 | N44: 72 | O44: 659 | P44: 06 min. 08,677 | Q44: 37 | R44: 09,964 sek.
C45: 39 | D45: Jirgens Klops | E45: 71 | F45: 48 | G45: 54 | H45: 49 | I45: 79 | J45: 39 | K45: 26 | L45: 92 | M45: 68 | N45: 110 | O45: 636 | P45: 10 min. 00,983 | Q45: 44 | R45: 13,659 sek.
C46: 40 | D46: Abreviatūra | E46: 59 | F46: 72 | G46: 40 | H46: 49 | I46: 65 | J46: 47 | K46: -1 | L46: 80 | M46: 133 | N46: 87 | O46: 631 | P46: 06 min. 15,706 | Q46: 36 | R46: 10,436 sek.
C47: 41 | D47: Swan | E47: 56 | F47: 52 | G47: 50 | H47: 51 | I47: 110 | J47: 82 | K47: -10 | L47: 82 | M47: 72 | N47: 86 | O47: 631 | P47: 09 min. 41,395 | Q47: 43 | R47: 13,521 sek.
C48: 42 | D48: Ķeskas | E48: 69 | F48: 40 | G48: 35 | H48: 26 | I48: 71 | J48: 61 | K48: 42 | L48: 75 | M48: 80 | N48: 121 | O48: 620 | P48: 11 min. 19,136 | Q48: 43 | R48: 15,794 sek.
C49: 43 | D49: Kantoris3 | E49: 86 | F49: 67 | G49: 114 | H49: 37 | I49: 126 | J49: 0 | K49: -14 | L49: 81 | M49: 34 | N49: 45 | O49: 576 | P49: 07 min. 27,177 | Q49: 39 | R49: 11,466 sek.
C50: 44 | D50: Pretējās mājas Skaidrīte | E50: 0 | F50: 0 | G50: 64 | H50: 53 | I50: 68 | J50: 72 | K50: 2 | L50: 73 | M50: 101 | N50: 133 | O50: 566 | P50: 05 min. 57,270 | Q50: 35 | R50: 10,208 sek.
C51: 45 | D51: Iž jupiter | E51: 57 | F51: 58 | G51: 72 | H51: 38 | I51: 41 | J51: 24 | K51: 16 | L51: 74 | M51: 72 | N51: 113 | O51: 565 | P51: 09 min. 06,797 | Q51: 39 | R51: 14,020 sek.
C52: 46 | D52: Jaunieši | E52: 76 | F52: 45 | G52: 62 | H52: 27 | I52: 100 | J52: 33 | K52: -40 | L52: 56 | M52: 103 | N52: 75 | O52: 537 | P52: 07 min. 31,748 | Q52: 36 | R52: 12,549 sek.
C53: 47 | D53: Vilnas zeķītes | E53: 67 | F53: 64 | G53: 93 | H53: 17 | I53: 40 | J53: 41 | K53: -7 | L53: 65 | M53: 116 | N53: 21 | O53: 517 | P53: 04 min. 14,554 | Q53: 31 | R53: 08,211 sek.
C54: 48 | D54: EA team | E54: 45 | F54: 40 | G54: 16 | H54: 44 | I54: 59 | J54: 45 | K54: 53 | L54: 79 | M54: 34 | N54: 91 | O54: 506 | P54: 09 min. 02,864 | Q54: 36 | R54: 15,080 sek.
C55: 49 | D55: KAS | E55: 11 | F55: 84 | G55: 90 | H55: 31 | I55: 85 | J55: 40 | K55: 12 | L55: 32 | M55: 47 | N55: 69 | O55: 501 | P55: 07 min. 23,806 | Q55: 35 | R55: 12,680 sek.
C56: 50 | D56: Tikai mieru!! | E56: 50 | F56: 98 | G56: 24 | H56: 16 | I56: 90 | J56: 34 | K56: -21 | L56: 55 | M56: 54 | N56: 83 | O56: 483 | P56: 09 min. 16,621 | Q56: 36 | R56: 15,462 sek.
C57: 51 | D57: Gungāņi | E57: 44 | F57: 51 | G57: 65 | H57: 14 | I57: 37 | J57: 0 | K57: 21 | L57: 83 | M57: 64 | N57: 66 | O57: 445 | P57: 06 min. 37,259 | Q57: 31 | R57: 12,815 sek.
C58: 52 | D58: Smilšu rukši | E58: 49 | F58: 18 | G58: 58 | H58: 20 | I58: 72 | J58: 0 | K58: -5 | L58: 65 | M58: 24 | N58: 85 | O58: 386 | P58: 05 min. 44,819 | Q58: 28 | R58: 12,315 sek.
C59: 53 | D59: No One | E59: 58 | F59: 8 | G59: 30 | H59: 21 | I59: 55 | J59: 0 | K59: -59 | L59: 106 | M59: 35 | N59: 49 | O59: 303 | P59: 06 min. 56,237 | Q59: 26 | R59: 16,009 sek.

Sheet 1-50
C2: =tabula!C2 -> "Lielā viktorīna" (tiešsaistē / vebinārā) | 2024.gada 6.oktobris
B3: Grupa | C3: =tabula!C3 -> # | D3: =tabula!D3 -> Dalībnieks | Raunds | Tēma | Max punkti raundā (bez bonusiem) | E3: =tabula!E3 -> 1 | F3: =tabula!F3 -> 2 | G3: =tabula!G3 -> 3 | H3: =tabula!H3 -> 4 | I3: =tabula!I3 -> 5 | J3: =tabula!J3 -> 6 | K3: =tabula!K3 -> 7 | L3: =tabula!L3 -> 8 | M3: =tabula!M3 -> 9 | N3: =tabula!N3 -> 10 | O3: =tabula!O3 -> KOPĀ | P3: =tabula!P3 -> Laiks kopā | Q3: =tabula!Q3 -> Pareizās atbildes (max 68) | R3: =tabula!R3 -> Vid.laiks uz 1 pareizo atb.
E4: =tabula!E4 -> Pavediens | F4: =tabula!F4 -> Divas atbildes | G4: =tabula!G4 -> Ekspresis | H4: =tabula!H4 -> Burtu mīkla | I4: =tabula!I4 -> Ķēde | J4: =tabula!J4 -> Latvija | K4: =tabula!K4 -> Risks: Sporta veidu apraksti | L4: =tabula!L4 -> Kas kopīgs? | M4: =tabula!M4 -> Liekais pazūd | Citāti | N4: =tabula!N4 -> Audio
E5: =tabula!E5 -> 150 | F5: =tabula!F5 -> 180 | G5: =tabula!G5 -> 180 | H5: =tabula!H5 -> 150 | I5: 175 | J5: =tabula!J5 -> 150 | K5: =tabula!K5 -> 120 | L5: =tabula!L5 -> 180 | M5: =tabula!M5 -> 150 | N5: =tabula!N5 -> 150 | O5: =tabula!O5 -> 1585
D6: =tabula!D6 -> Vidēji p-ti raundā | E6: =tabula!E6 -> 76.8 | F6: =tabula!F6 -> 74.5 | G6: =tabula!G6 -> 76.5 | H6: =tabula!H6 -> 56.9 | I6: =tabula!I6 -> 101.3 | J6: =tabula!J6 -> 50.6 | K6: =tabula!K6 -> 31 | L6: =tabula!L6 -> 91.6 | M6: =tabula!M6 -> 89.7 | N6: =tabula!N6 -> 90.5 | O6: =tabula!O6 -> 739.4
B7: 3 | C7: =tabula!C7 -> 1 | D7: =tabula!D7 -> Bunkurs_13 | E7: =tabula!E7 -> 115 | F7: =tabula!F7 -> 140 | G7: =tabula!G7 -> 112 | H7: =tabula!H7 -> 95 | I7: =tabula!I7 -> 155 | J7: =tabula!J7 -> 64 | K7: =tabula!K7 -> 110 | L7: =tabula!L7 -> 149 | M7: =tabula!M7 -> 134 | N7: =tabula!N7 -> 132 | O7: =tabula!O7 -> 1206 | P7: =tabula!P7 -> 05 min. 30,702 | Q7: =tabula!Q7 -> 58 | R7: =tabula!R7 -> 05,702 sek.
B8: 1 | C8: =tabula!C8 -> 2 | D8: =tabula!D8 -> Pundurplanēta | E8: =tabula!E8 -> 119 | F8: =tabula!F8 -> 136 | G8: =tabula!G8 -> 130 | H8: =tabula!H8 -> 112 | I8: =tabula!I8 -> 159 | J8: =tabula!J8 -> 64 | K8: =tabula!K8 -> 78 | L8: =tabula!L8 -> 168 | M8: =tabula!M8 -> 110 | N8: =tabula!N8 -> 127 | O8: =tabula!O8 -> 1203 | P8: =tabula!P8 -> 07 min. 21,470 | Q8: =tabula!Q8 -> 61 | R8: =tabula!R8 -> 07,237 sek.
B9: 1 | C9: =tabula!C9 -> 3 | D9: =tabula!D9 -> VMR | E9: =tabula!E9 -> 93 | F9: =tabula!F9 -> 138 | G9: =tabula!G9 -> 105 | H9: =tabula!H9 -> 85 | I9: =tabula!I9 -> 152 | J9: =tabula!J9 -> 116 | K9: =tabula!K9 -> 59 | L9: =tabula!L9 -> 167 | M9: =tabula!M9 -> 147 | N9: =tabula!N9 -> 91 | O9: =tabula!O9 -> 1153 | P9: =tabula!P9 -> 07 min. 05,347 | Q9: =tabula!Q9 -> 59 | R9: =tabula!R9 -> 07,209 sek.
B10: 3 | C10: =tabula!C10 -> 4 | D10: =tabula!D10 -> BUGATTI 21023 | E10: =tabula!E10 -> 109 | F10: =tabula!F10 -> 67 | G10: =tabula!G10 -> 69 | H10: =tabula!H10 -> 118 | I10: =tabula!I10 -> 143 | J10: =tabula!J10 -> 93 | K10: =tabula!K10 -> 70 | L10: =tabula!L10 -> 131 | M10: =tabula!M10 -> 128 | N10: =tabula!N10 -> 99 | O10: =tabula!O10 -> 1027 | P10: =tabula!P10 -> 09 min. 43,818 | Q10: =tabula!Q10 -> 59 | R10: =tabula!R10 -> 09,895 sek.
B11: 1 | C11: =tabula!C11 -> 5 | D11: =tabula!D11 -> Rupuči, turās! | E11: =tabula!E11 -> 92 | F11: =tabula!F11 -> 105 | G11: =tabula!G11 -> 112 | H11: =tabula!H11 -> 75 | I11: =tabula!I11 -> 142 | J11: =tabula!J11 -> 69 | K11: =tabula!K11 -> 72 | L11: =tabula!L11 -> 130 | M11: =tabula!M11 -> 121 | N11: =tabula!N11 -> 70 | O11: =tabula!O11 -> 988 | P11: =tabula!P11 -> 07 min. 30,116 | Q11: =tabula!Q11 -> 54 | R11: =tabula!R11 -> 08,335 sek.
B12: 3 | C12: =tabula!C12 -> 6 | D12: =tabula!D12 -> Ļoti labi | E12: =tabula!E12 -> 99 | F12: =tabula!F12 -> 120 | G12: =tabula!G12 -> 58 | H12: =tabula!H12 -> 50 | I12: =tabula!I12 -> 118 | J12: =tabula!J12 -> 67 | K12: =tabula!K12 -> 74 | L12: =tabula!L12 -> 158 | M12: =tabula!M12 -> 127 | N12: =tabula!N12 -> 117 | O12: =tabula!O12 -> 988 | P12: =tabula!P12 -> 09 min. 36,707 | Q12: =tabula!Q12 -> 56 | R12: =tabula!R12 -> 10,298 sek.
B13: 1 | C13: =tabula!C13 -> 7 | D13: =tabula!D13 -> MārcisS | E13: =tabula!E13 -> 115 | F13: =tabula!F13 -> 82 | G13: =tabula!G13 -> 116 | H13: =tabula!H13 -> 63 | I13: =tabula!I13 -> 154 | J13: =tabula!J13 -> 59 | K13: =tabula!K13 -> 52 | L13: =tabula!L13 -> 113 | M13: =tabula!M13 -> 108 | N13: =tabula!N13 -> 114 | O13: =tabula!O13 -> 976 | P13: =tabula!P13 -> 07 min. 17,356 | Q13: =tabula!Q13 -> 54 | R13: =tabula!R13 -> 08,099 sek.
B14: 1 | C14: =tabula!C14 -> 8 | D14: =tabula!D14 -> Kņopienei volga! | E14: =tabula!E14 -> 118 | F14: =tabula!F14 -> 72 | G14: =tabula!G14 -> 120 | H14: =tabula!H14 -> 105 | I14: =tabula!I14 -> 131 | J14: =tabula!J14 -> 69 | K14: =tabula!K14 -> 10 | L14: =tabula!L14 -> 110 | M14: =tabula!M14 -> 113 | N14: =tabula!N14 -> 114 | O14: =tabula!O14 -> 962 | P14: =tabula!P14 -> 07 min. 15,233 | Q14: =tabula!Q14 -> 53 | R14: =tabula!R14 -> 08,212 sek.
B15: 2 | C15: =tabula!C15 -> 9 | D15: =tabula!D15 -> Virsskaņas alus iznīcinātājs | E15: =tabula!E15 -> 121 | F15: =tabula!F15 -> 79 | G15: =tabula!G15 -> 84 | H15: =tabula!H15 -> 102 | I15: =tabula!I15 -> 122 | J15: =tabula!J15 -> 86 | K15: =tabula!K15 -> 40 | L15: =tabula!L15 -> 89 | M15: =tabula!M15 -> 119 | N15: =tabula!N15 -> 81 | O15: =tabula!O15 -> 923 | P15: =tabula!P15 -> 07 min. 49,182 | Q15: =tabula!Q15 -> 51 | R15: =tabula!R15 -> 09,200 sek.
B16: 3 | C16: =tabula!C16 -> 10 | D16: =tabula!D16 -> Dažas pazudušas skrūvītes | E16: =tabula!E16 -> 82 | F16: =tabula!F16 -> 124 | G16: =tabula!G16 -> 111 | H16: =tabula!H16 -> 112 | I16: =tabula!I16 -> 120 | J16: =tabula!J16 -> 70 | K16: =tabula!K16 -> 36 | L16: =tabula!L16 -> 116 | M16: =tabula!M16 -> 62 | N16: =tabula!N16 -> 86 | O16: =tabula!O16 -> 919 | P16: =tabula!P16 -> 13 min. 06,145 | Q16: =tabula!Q16 -> 59 | R16: =tabula!R16 -> 13,324 sek.
B17: 2 | C17: =tabula!C17 -> 11 | D17: =tabula!D17 -> HektoraKristaps | E17: =tabula!E17 -> 83 | F17: =tabula!F17 -> 130 | G17: =tabula!G17 -> 110 | H17: =tabula!H17 -> 121 | I17: =tabula!I17 -> 104 | J17: =tabula!J17 -> 69 | K17: =tabula!K17 -> 28 | L17: =tabula!L17 -> 85 | M17: =tabula!M17 -> 107 | N17: =tabula!N17 -> 60 | O17: =tabula!O17 -> 897 | P17: =tabula!P17 -> 07 min. 54,514 | Q17: =tabula!Q17 -> 50 | R17: =tabula!R17 -> 09,490 sek.
B18: 2 | C18: =tabula!C18 -> 12 | D18: =tabula!D18 -> Kaulini | E18: =tabula!E18 -> 95 | F18: =tabula!F18 -> 62 | G18: =tabula!G18 -> 146 | H18: =tabula!H18 -> 43 | I18: =tabula!I18 -> 113 | J18: =tabula!J18 -> 65 | K18: =tabula!K18 -> 49 | L18: =tabula!L18 -> 126 | M18: =tabula!M18 -> 103 | N18: =tabula!N18 -> 83 | O18: =tabula!O18 -> 885 | P18: =tabula!P18 -> 08 min. 11,247 | Q18: =tabula!Q18 -> 53 | R18: =tabula!R18 -> 09,269 sek.
B19: 2 | C19: =tabula!C19 -> 13 | D19: =tabula!D19 -> BunS | E19: =tabula!E19 -> 57 | F19: =tabula!F19 -> 80 | G19: =tabula!G19 -> 57 | H19: =tabula!H19 -> 96 | I19: =tabula!I19 -> 104 | J19: =tabula!J19 -> 58 | K19: =tabula!K19 -> 60 | L19: =tabula!L19 -> 100 | M19: =tabula!M19 -> 101 | N19: =tabula!N19 -> 114 | O19: =tabula!O19 -> 827 | P19: =tabula!P19 -> 11 min. 53,381 | Q19: =tabula!Q19 -> 53 | R19: =tabula!R19 -> 13,460 sek.
B20: 3 | C20: =tabula!C20 -> 14 | D20: =tabula!D20 -> Andris Skuja ne bez čuja | E20: =tabula!E20 -> 91 | F20: =tabula!F20 -> 102 | G20: =tabula!G20 -> 49 | H20: =tabula!H20 -> 80 | I20: =tabula!I20 -> 119 | J20: =tabula!J20 -> 83 | K20: =tabula!K20 -> 53 | L20: =tabula!L20 -> 61 | M20: =tabula!M20 -> 87 | N20: =tabula!N20 -> 97 | O20: =tabula!O20 -> 822 | P20: =tabula!P20 -> 07 min. 53,264 | Q20: =tabula!Q20 -> 46 | R20: =tabula!R20 -> 10,288 sek.
B21: 1 | C21: =tabula!C21 -> 15 | D21: =tabula!D21 -> PutniņiCūciņas | E21: =tabula!E21 -> 66 | F21: =tabula!F21 -> 84 | G21: =tabula!G21 -> 99 | H21: =tabula!H21 -> 60 | I21: =tabula!I21 -> 118 | J21: =tabula!J21 -> 17 | K21: =tabula!K21 -> 66 | L21: =tabula!L21 -> 62 | M21: =tabula!M21 -> 114 | N21: =tabula!N21 -> 130 | O21: =tabula!O21 -> 816 | P21: =tabula!P21 -> 06 min. 34,854 | Q21: =tabula!Q21 -> 46 | R21: =tabula!R21 -> 08,584 sek.
B22: 3 | C22: =tabula!C22 -> 16 | D22: =tabula!D22 -> Šveices diaspora | E22: =tabula!E22 -> 86 | F22: =tabula!F22 -> 75 | G22: =tabula!G22 -> 80 | H22: =tabula!H22 -> 45 | I22: =tabula!I22 -> 100 | J22: =tabula!J22 -> 25 | K22: =tabula!K22 -> 60 | L22: =tabula!L22 -> 110 | M22: =tabula!M22 -> 92 | N22: =tabula!N22 -> 109 | O22: =tabula!O22 -> 782 | P22: =tabula!P22 -> 09 min. 59,185 | Q22: =tabula!Q22 -> 50 | R22: =tabula!R22 -> 11,984 sek.
B23: 3 | C23: =tabula!C23 -> 17 | D23: =tabula!D23 -> Rūķis Stūķis | E23: =tabula!E23 -> 46 | F23: =tabula!F23 -> 93 | G23: =tabula!G23 -> 56 | H23: =tabula!H23 -> 48 | I23: =tabula!I23 -> 102 | J23: =tabula!J23 -> 60 | K23: =tabula!K23 -> 31 | L23: =tabula!L23 -> 125 | M23: =tabula!M23 -> 116 | N23: =tabula!N23 -> 104 | O23: =tabula!O23 -> 781 | P23: =tabula!P23 -> 06 min. 53,472 | Q23: =tabula!Q23 -> 43 | R23: =tabula!R23 -> 09,616 sek.
B24: 3 | C24: =tabula!C24 -> 18 | D24: =tabula!D24 -> DZ4 | E24: =tabula!E24 -> 101 | F24: =tabula!F24 -> 91 | G24: =tabula!G24 -> 80 | H24: =tabula!H24 -> 63 | I24: =tabula!I24 -> 98 | J24: =tabula!J24 -> 69 | K24: =tabula!K24 -> 27 | L24: =tabula!L24 -> 26 | M24: =tabula!M24 -> 124 | N24: =tabula!N24 -> 101 | O24: =tabula!O24 -> 780 | P24: =tabula!P24 -> 08 min. 07,990 | Q24: =tabula!Q24 -> 47 | R24: =tabula!R24 -> 10,383 sek.
B25: 1 | C25: =tabula!C25 -> 19 | D25: =tabula!D25 -> LBG | E25: =tabula!E25 -> 64 | F25: =tabula!F25 -> 99 | G25: =tabula!G25 -> 74 | H25: =tabula!H25 -> 88 | I25: =tabula!I25 -> 116 | J25: =tabula!J25 -> 51 | K25: =tabula!K25 -> -5 | L25: =tabula!L25 -> 139 | M25: =tabula!M25 -> 92 | N25: =tabula!N25 -> 52 | O25: =tabula!O25 -> 770 | P25: =tabula!P25 -> 09 min. 09,397 | Q25: =tabula!Q25 -> 48 | R25: =tabula!R25 -> 11,446 sek.
B26: 1 | C26: =tabula!C26 -> 20 | D26: =tabula!D26 -> Inspektors | E26: =tabula!E26 -> 85 | F26: =tabula!F26 -> 49 | G26: =tabula!G26 -> 64 | H26: =tabula!H26 -> 41 | I26: =tabula!I26 -> 84 | J26: =tabula!J26 -> 48 | K26: =tabula!K26 -> 59 | L26: =tabula!L26 -> 128 | M26: =tabula!M26 -> 85 | N26: =tabula!N26 -> 126 | O26: =tabula!O26 -> 769 | P26: =tabula!P26 -> 10 min. 25,678 | Q26: =tabula!Q26 -> 50 | R26: =tabula!R26 -> 12,514 sek.
B27: 3 | C27: =tabula!C27 -> 21 | D27: =tabula!D27 -> Saule20 | E27: =tabula!E27 -> 108 | F27: =tabula!F27 -> 104 | G27: =tabula!G27 -> 59 | H27: =tabula!H27 -> 37 | I27: =tabula!I27 -> 86 | J27: =tabula!J27 -> 37 | K27: =tabula!K27 -> 103 | L27: =tabula!L27 -> 78 | M27: =tabula!M27 -> 88 | N27: =tabula!N27 -> 59 | O27: =tabula!O27 -> 759 | P27: =tabula!P27 -> 06 min. 36,566 | Q27: =tabula!Q27 -> 43 | R27: =tabula!R27 -> 09,222 sek.
C28: =tabula!C28 -> 22 | D28: =tabula!D28 -> Zupa no nekā | E28: =tabula!E28 -> 89 | F28: =tabula!F28 -> 72 | G28: =tabula!G28 -> 108 | H28: =tabula!H28 -> 54 | I28: =tabula!I28 -> 118 | J28: =tabula!J28 -> 43 | K28: =tabula!K28 -> 5 | L28: =tabula!L28 -> 96 | M28: =tabula!M28 -> 59 | N28: =tabula!N28 -> 109 | O28: =tabula!O28 -> 753 | P28: =tabula!P28 -> 10 min. 48,203 | Q28: =tabula!Q28 -> 51 | R28: =tabula!R28 -> 12,710 sek.
C29: =tabula!C29 -> 23 | D29: =tabula!D29 -> Brilles +1 | E29: =tabula!E29 -> 98 | F29: =tabula!F29 -> 61 | G29: =tabula!G29 -> 56 | H29: =tabula!H29 -> 72 | I29: =tabula!I29 -> 106 | J29: =tabula!J29 -> 47 | K29: =tabula!K29 -> 51 | L29: =tabula!L29 -> 89 | M29: =tabula!M29 -> 86 | N29: =tabula!N29 -> 86 | O29: =tabula!O29 -> 752 | P29: =tabula!P29 -> 11 min. 18,570 | Q29: =tabula!Q29 -> 49 | R29: =tabula!R29 -> 13,848 sek.
C30: =tabula!C30 -> 24 | D30: =tabula!D30 -> ANNIŅMUIŽA | E30: =tabula!E30 -> 84 | F30: =tabula!F30 -> 113 | G30: =tabula!G30 -> 102 | H30: =tabula!H30 -> 26 | I30: =tabula!I30 -> 110 | J30: =tabula!J30 -> 21 | K30: =tabula!K30 -> 2 | L30: =tabula!L30 -> 97 | M30: =tabula!M30 -> 114 | N30: =tabula!N30 -> 80 | O30: =tabula!O30 -> 749 | P30: =tabula!P30 -> 07 min. 15,271 | Q30: =tabula!Q30 -> 45 | R30: =tabula!R30 -> 09,673 sek.
C31: =tabula!C31 -> 25 | D31: =tabula!D31 -> Pieci kaķi | E31: =tabula!E31 -> 94 | F31: =tabula!F31 -> 60 | G31: =tabula!G31 -> 62 | H31: =tabula!H31 -> 55 | I31: =tabula!I31 -> 90 | J31: =tabula!J31 -> 77 | K31: =tabula!K31 -> 71 | L31: =tabula!L31 -> 51 | M31: =tabula!M31 -> 82 | N31: =tabula!N31 -> 97 | O31: =tabula!O31 -> 739 | P31: =tabula!P31 -> 09 min. 54,897 | Q31: =tabula!Q31 -> 48 | R31: =tabula!R31 -> 12,394 sek.
C32: =tabula!C32 -> 26 | D32: =tabula!D32 -> Subarubaru | E32: =tabula!E32 -> 86 | F32: =tabula!F32 -> 85 | G32: =tabula!G32 -> 111 | H32: =tabula!H32 -> 60 | I32: =tabula!I32 -> 109 | J32: =tabula!J32 -> 38 | K32: =tabula!K32 -> -44 | L32: =tabula!L32 -> 113 | M32: =tabula!M32 -> 98 | N32: =tabula!N32 -> 80 | O32: =tabula!O32 -> 736 | P32: =tabula!P32 -> 05 min. 24,793 | Q32: =tabula!Q32 -> 42 | R32: =tabula!R32 -> 07,733 sek.
C33: =tabula!C33 -> 27 | D33: =tabula!D33 -> ROBO | E33: =tabula!E33 -> 55 | F33: =tabula!F33 -> 89 | G33: =tabula!G33 -> 86 | H33: =tabula!H33 -> 73 | I33: =tabula!I33 -> 113 | J33: =tabula!J33 -> 18 | K33: =tabula!K33 -> 46 | L33: =tabula!L33 -> 59 | M33: =tabula!M33 -> 99 | N33: =tabula!N33 -> 88 | O33: =tabula!O33 -> 726 | P33: =tabula!P33 -> 05 min. 19,597 | Q33: =tabula!Q33 -> 39 | R33: =tabula!R33 -> 08,195 sek.
C34: =tabula!C34 -> 28 | D34: =tabula!D34 -> GPS | E34: =tabula!E34 -> 69 | F34: =tabula!F34 -> 55 | G34: =tabula!G34 -> 48 | H34: =tabula!H34 -> 50 | I34: =tabula!I34 -> 67 | J34: =tabula!J34 -> 66 | K34: =tabula!K34 -> 47 | L34: =tabula!L34 -> 94 | M34: =tabula!M34 -> 93 | N34: =tabula!N34 -> 130 | O34: =tabula!O34 -> 719 | P34: =tabula!P34 -> 11 min. 13,099 | Q34: =tabula!Q34 -> 48 | R34: =tabula!R34 -> 14,023 sek.
C35: =tabula!C35 -> 29 | D35: =tabula!D35 -> Trakie Truši | E35: =tabula!E35 -> 89 | F35: =tabula!F35 -> 74 | G35: =tabula!G35 -> 44 | H35: =tabula!H35 -> 74 | I35: =tabula!I35 -> 114 | J35: =tabula!J35 -> 45 | K35: =tabula!K35 -> -2 | L35: =tabula!L35 -> 90 | M35: =tabula!M35 -> 83 | N35: =tabula!N35 -> 93 | O35: =tabula!O35 -> 704 | P35: =tabula!P35 -> 11 min. 36,880 | Q35: =tabula!Q35 -> 48 | R35: =tabula!R35 -> 14,518 sek.
C36: =tabula!C36 -> 30 | D36: =tabula!D36 -> Stams | E36: =tabula!E36 -> 74 | F36: =tabula!F36 -> 74 | G36: =tabula!G36 -> 93 | H36: =tabula!H36 -> 37 | I36: =tabula!I36 -> 89 | J36: =tabula!J36 -> 73 | K36: =tabula!K36 -> 38 | L36: =tabula!L36 -> 108 | M36: =tabula!M36 -> 30 | N36: =tabula!N36 -> 84 | O36: =tabula!O36 -> 700 | P36: =tabula!P36 -> 09 min. 45,114 | Q36: =tabula!Q36 -> 46 | R36: =tabula!R36 -> 12,720 sek.
C37: =tabula!C37 -> 31 | D37: =tabula!D37 -> Morgana | E37: =tabula!E37 -> 93 | F37: =tabula!F37 -> 49 | G37: =tabula!G37 -> 56 | H37: =tabula!H37 -> 24 | I37: =tabula!I37 -> 131 | J37: =tabula!J37 -> 28 | K37: =tabula!K37 -> 68 | L37: =tabula!L37 -> 20 | M37: =tabula!M37 -> 111 | N37: =tabula!N37 -> 119 | O37: =tabula!O37 -> 699 | P37: =tabula!P37 -> 07 min. 52,111 | Q37: =tabula!Q37 -> 43 | R37: =tabula!R37 -> 10,979 sek.
C38: =tabula!C38 -> 32 | D38: =tabula!D38 -> Džins bez tonika | E38: =tabula!E38 -> 88 | F38: =tabula!F38 -> 35 | G38: =tabula!G38 -> 75 | H38: =tabula!H38 -> 35 | I38: =tabula!I38 -> 97 | J38: =tabula!J38 -> 95 | K38: =tabula!K38 -> 3 | L38: =tabula!L38 -> 74 | M38: =tabula!M38 -> 89 | N38: =tabula!N38 -> 107 | O38: =tabula!O38 -> 698 | P38: =tabula!P38 -> 07 min. 38,902 | Q38: =tabula!Q38 -> 43 | R38: =tabula!R38 -> 10,672 sek.
C39: =tabula!C39 -> 33 | D39: =tabula!D39 -> pigviins | E39: =tabula!E39 -> 75 | F39: =tabula!F39 -> 49 | G39: =tabula!G39 -> 94 | H39: =tabula!H39 -> 62 | I39: =tabula!I39 -> 70 | J39: =tabula!J39 -> 15 | K39: =tabula!K39 -> 36 | L39: =tabula!L39 -> 111 | M39: =tabula!M39 -> 99 | N39: =tabula!N39 -> 82 | O39: =tabula!O39 -> 693 | P39: =tabula!P39 -> 07 min. 09,538 | Q39: =tabula!Q39 -> 41 | R39: =tabula!R39 -> 10,477 sek.
C40: =tabula!C40 -> 34 | D40: =tabula!D40 -> Pienene | E40: =tabula!E40 -> 38 | F40: =tabula!F40 -> 106 | G40: =tabula!G40 -> 90 | H40: =tabula!H40 -> 59 | I40: =tabula!I40 -> 111 | J40: =tabula!J40 -> 34 | K40: =tabula!K40 -> 36 | L40: =tabula!L40 -> 72 | M40: =tabula!M40 -> 85 | N40: =tabula!N40 -> 61 | O40: =tabula!O40 -> 692 | P40: =tabula!P40 -> 05 min. 45,578 | Q40: =tabula!Q40 -> 40 | R40: =tabula!R40 -> 08,639 sek.
C41: =tabula!C41 -> 35 | D41: =tabula!D41 -> Lidojošs pingvīnC | E41: =tabula!E41 -> 42 | F41: =tabula!F41 -> 75 | G41: =tabula!G41 -> 88 | H41: =tabula!H41 -> 49 | I41: =tabula!I41 -> 137 | J41: =tabula!J41 -> 66 | K41: =tabula!K41 -> 28 | L41: =tabula!L41 -> 95 | M41: =tabula!M41 -> 69 | N41: =tabula!N41 -> 37 | O41: =tabula!O41 -> 686 | P41: =tabula!P41 -> 06 min. 32,811 | Q41: =tabula!Q41 -> 41 | R41: =tabula!R41 -> 09,581 sek.
C42: =tabula!C42 -> 36 | D42: =tabula!D42 -> kD | E42: =tabula!E42 -> 91 | F42: =tabula!F42 -> 24 | G42: =tabula!G42 -> 99 | H42: =tabula!H42 -> 57 | I42: =tabula!I42 -> 61 | J42: =tabula!J42 -> 70 | K42: =tabula!K42 -> 53 | L42: =tabula!L42 -> 99 | M42: =tabula!M42 -> 42 | N42: =tabula!N42 -> 90 | O42: =tabula!O42 -> 686 | P42: =tabula!P42 -> 12 min. 01,424 | Q42: =tabula!Q42 -> 49 | R42: =tabula!R42 -> 14,723 sek.
C43: =tabula!C43 -> 37 | D43: =tabula!D43 -> Marinē divatā | E43: =tabula!E43 -> 65 | F43: =tabula!F43 -> 90 | G43: =tabula!G43 -> 82 | H43: =tabula!H43 -> 31 | I43: =tabula!I43 -> 78 | J43: =tabula!J43 -> 57 | K43: =tabula!K43 -> 38 | L43: =tabula!L43 -> 68 | M43: =tabula!M43 -> 71 | N43: =tabula!N43 -> 80 | O43: =tabula!O43 -> 660 | P43: =tabula!P43 -> 05 min. 56,606 | Q43: =tabula!Q43 -> 38 | R43: =tabula!R43 -> 09,384 sek.
C44: =tabula!C44 -> 38 | D44: =tabula!D44 -> Pitijs | E44: =tabula!E44 -> 97 | F44: =tabula!F44 -> 63 | G44: =tabula!G44 -> 0 | H44: =tabula!H44 -> 65 | I44: =tabula!I44 -> 128 | J44: =tabula!J44 -> 32 | K44: =tabula!K44 -> 20 | L44: =tabula!L44 -> 52 | M44: =tabula!M44 -> 130 | N44: =tabula!N44 -> 72 | O44: =tabula!O44 -> 659 | P44: =tabula!P44 -> 06 min. 08,677 | Q44: =tabula!Q44 -> 37 | R44: =tabula!R44 -> 09,964 sek.
C45: =tabula!C45 -> 39 | D45: =tabula!D45 -> Jirgens Klops | E45: =tabula!E45 -> 71 | F45: =tabula!F45 -> 48 | G45: =tabula!G45 -> 54 | H45: =tabula!H45 -> 49 | I45: =tabula!I45 -> 79 | J45: =tabula!J45 -> 39 | K45: =tabula!K45 -> 26 | L45: =tabula!L45 -> 92 | M45: =tabula!M45 -> 68 | N45: =tabula!N45 -> 110 | O45: =tabula!O45 -> 636 | P45: =tabula!P45 -> 10 min. 00,983 | Q45: =tabula!Q45 -> 44 | R45: =tabula!R45 -> 13,659 sek.
C46: =tabula!C46 -> 40 | D46: =tabula!D46 -> Abreviatūra | E46: =tabula!E46 -> 59 | F46: =tabula!F46 -> 72 | G46: =tabula!G46 -> 40 | H46: =tabula!H46 -> 49 | I46: =tabula!I46 -> 65 | J46: =tabula!J46 -> 47 | K46: =tabula!K46 -> -1 | L46: =tabula!L46 -> 80 | M46: =tabula!M46 -> 133 | N46: =tabula!N46 -> 87 | O46: =tabula!O46 -> 631 | P46: =tabula!P46 -> 06 min. 15,706 | Q46: =tabula!Q46 -> 36 | R46: =tabula!R46 -> 10,436 sek.
C47: =tabula!C47 -> 41 | D47: =tabula!D47 -> Swan | E47: =tabula!E47 -> 56 | F47: =tabula!F47 -> 52 | G47: =tabula!G47 -> 50 | H47: =tabula!H47 -> 51 | I47: =tabula!I47 -> 110 | J47: =tabula!J47 -> 82 | K47: =tabula!K47 -> -10 | L47: =tabula!L47 -> 82 | M47: =tabula!M47 -> 72 | N47: =tabula!N47 -> 86 | O47: =tabula!O47 -> 631 | P47: =tabula!P47 -> 09 min. 41,395 | Q47: =tabula!Q47 -> 43 | R47: =tabula!R47 -> 13,521 sek.
C48: =tabula!C48 -> 42 | D48: =tabula!D48 -> Ķeskas | E48: =tabula!E48 -> 69 | F48: =tabula!F48 -> 40 | G48: =tabula!G48 -> 35 | H48: =tabula!H48 -> 26 | I48: =tabula!I48 -> 71 | J48: =tabula!J48 -> 61 | K48: =tabula!K48 -> 42 | L48: =tabula!L48 -> 75 | M48: =tabula!M48 -> 80 | N48: =tabula!N48 -> 121 | O48: =tabula!O48 -> 620 | P48: =tabula!P48 -> 11 min. 19,136 | Q48: =tabula!Q48 -> 43 | R48: =tabula!R48 -> 15,794 sek.
C49: =tabula!C49 -> 43 | D49: =tabula!D49 -> Kantoris3 | E49: =tabula!E49 -> 86 | F49: =tabula!F49 -> 67 | G49: =tabula!G49 -> 114 | H49: =tabula!H49 -> 37 | I49: =tabula!I49 -> 126 | J49: =tabula!J49 -> 0 | K49: =tabula!K49 -> -14 | L49: =tabula!L49 -> 81 | M49: =tabula!M49 -> 34 | N49: =tabula!N49 -> 45 | O49: =tabula!O49 -> 576 | P49: =tabula!P49 -> 07 min. 27,177 | Q49: =tabula!Q49 -> 39 | R49: =tabula!R49 -> 11,466 sek.
C50: =tabula!C50 -> 44 | D50: =tabula!D50 -> Pretējās mājas Skaidrīte | E50: =tabula!E50 -> 0 | F50: =tabula!F50 -> 0 | G50: =tabula!G50 -> 64 | H50: =tabula!H50 -> 53 | I50: =tabula!I50 -> 68 | J50: =tabula!J50 -> 72 | K50: =tabula!K50 -> 2 | L50: =tabula!L50 -> 73 | M50: =tabula!M50 -> 101 | N50: =tabula!N50 -> 133 | O50: =tabula!O50 -> 566 | P50: =tabula!P50 -> 05 min. 57,270 | Q50: =tabula!Q50 -> 35 | R50: =tabula!R50 -> 10,208 sek.
C51: =tabula!C51 -> 45 | D51: =tabula!D51 -> Iž jupiter | E51: =tabula!E51 -> 57 | F51: =tabula!F51 -> 58 | G51: =tabula!G51 -> 72 | H51: =tabula!H51 -> 38 | I51: =tabula!I51 -> 41 | J51: =tabula!J51 -> 24 | K51: =tabula!K51 -> 16 | L51: =tabula!L51 -> 74 | M51: =tabula!M51 -> 72 | N51: =tabula!N51 -> 113 | O51: =tabula!O51 -> 565 | P51: =tabula!P51 -> 09 min. 06,797 | Q51: =tabula!Q51 -> 39 | R51: =tabula!R51 -> 14,020 sek.
C52: =tabula!C52 -> 46 | D52: =tabula!D52 -> Jaunieši | E52: =tabula!E52 -> 76 | F52: =tabula!F52 -> 45 | G52: =tabula!G52 -> 62 | H52: =tabula!H52 -> 27 | I52: =tabula!I52 -> 100 | J52: =tabula!J52 -> 33 | K52: =tabula!K52 -> -40 | L52: =tabula!L52 -> 56 | M52: =tabula!M52 -> 103 | N52: =tabula!N52 -> 75 | O52: =tabula!O52 -> 537 | P52: =tabula!P52 -> 07 min. 31,748 | Q52: =tabula!Q52 -> 36 | R52: =tabula!R52 -> 12,549 sek.
C53: =tabula!C53 -> 47 | D53: =tabula!D53 -> Vilnas zeķītes | E53: =tabula!E53 -> 67 | F53: =tabula!F53 -> 64 | G53: =tabula!G53 -> 93 | H53: =tabula!H53 -> 17 | I53: =tabula!I53 -> 40 | J53: =tabula!J53 -> 41 | K53: =tabula!K53 -> -7 | L53: =tabula!L53 -> 65 | M53: =tabula!M53 -> 116 | N53: =tabula!N53 -> 21 | O53: =tabula!O53 -> 517 | P53: =tabula!P53 -> 04 min. 14,554 | Q53: =tabula!Q53 -> 31 | R53: =tabula!R53 -> 08,211 sek.
C54: =tabula!C54 -> 48 | D54: =tabula!D54 -> EA team | E54: =tabula!E54 -> 45 | F54: =tabula!F54 -> 40 | G54: =tabula!G54 -> 16 | H54: =tabula!H54 -> 44 | I54: =tabula!I54 -> 59 | J54: =tabula!J54 -> 45 | K54: =tabula!K54 -> 53 | L54: =tabula!L54 -> 79 | M54: =tabula!M54 -> 34 | N54: =tabula!N54 -> 91 | O54: =tabula!O54 -> 506 | P54: =tabula!P54 -> 09 min. 02,864 | Q54: =tabula!Q54 -> 36 | R54: =tabula!R54 -> 15,080 sek.
C55: =tabula!C55 -> 49 | D55: =tabula!D55 -> KAS | E55: =tabula!E55 -> 11 | F55: =tabula!F55 -> 84 | G55: =tabula!G55 -> 90 | H55: =tabula!H55 -> 31 | I55: =tabula!I55 -> 85 | J55: =tabula!J55 -> 40 | K55: =tabula!K55 -> 12 | L55: =tabula!L55 -> 32 | M55: =tabula!M55 -> 47 | N55: =tabula!N55 -> 69 | O55: =tabula!O55 -> 501 | P55: =tabula!P55 -> 07 min. 23,806 | Q55: =tabula!Q55 -> 35 | R55: =tabula!R55 -> 12,680 sek.
C56: =tabula!C56 -> 50 | D56: =tabula!D56 -> Tikai mieru!! | E56: =tabula!E56 -> 50 | F56: =tabula!F56 -> 98 | G56: =tabula!G56 -> 24 | H56: =tabula!H56 -> 16 | I56: =tabula!I56 -> 90 | J56: =tabula!J56 -> 34 | K56: =tabula!K56 -> -21 | L56: =tabula!L56 -> 55 | M56: =tabula!M56 -> 54 | N56: =tabula!N56 -> 83 | O56: =tabula!O56 -> 483 | P56: =tabula!P56 -> 09 min. 16,621 | Q56: =tabula!Q56 -> 36 | R56: =tabula!R56 -> 15,462 sek.
C57: =tabula!C57 -> 51 | D57: =tabula!D57 -> Gungāņi | E57: =tabula!E57 -> 44 | F57: =tabula!F57 -> 51 | G57: =tabula!G57 -> 65 | H57: =tabula!H57 -> 14 | I57: =tabula!I57 -> 37 | J57: =tabula!J57 -> 0 | K57: =tabula!K57 -> 21 | L57: =tabula!L57 -> 83 | M57: =tabula!M57 -> 64 | N57: =tabula!N57 -> 66 | O57: =tabula!O57 -> 445 | P57: =tabula!P57 -> 06 min. 37,259 | Q57: =tabula!Q57 -> 31 | R57: =tabula!R57 -> 12,815 sek.
C58: =tabula!C58 -> 52 | D58: =tabula!D58 -> Smilšu rukši | E58: =tabula!E58 -> 49 | F58: =tabula!F58 -> 18 | G58: =tabula!G58 -> 58 | H58: =tabula!H58 -> 20 | I58: =tabula!I58 -> 72 | J58: =tabula!J58 -> 0 | K58: =tabula!K58 -> -5 | L58: =tabula!L58 -> 65 | M58: =tabula!M58 -> 24 | N58: =tabula!N58 -> 85 | O58: =tabula!O58 -> 386 | P58: =tabula!P58 -> 05 min. 44,819 | Q58: =tabula!Q58 -> 28 | R58: =tabula!R58 -> 12,315 sek.
C59: =tabula!C59 -> 53 | D59: =tabula!D59 -> No One | E59: =tabula!E59 -> 58 | F59: =tabula!F59 -> 8 | G59: =tabula!G59 -> 30 | H59: =tabula!H59 -> 21 | I59: =tabula!I59 -> 55 | J59: =tabula!J59 -> 0 | K59: =tabula!K59 -> -59 | L59: =tabula!L59 -> 106 | M59: =tabula!M59 -> 35 | N59: =tabula!N59 -> 49 | O59: =tabula!O59 -> 303 | P59: =tabula!P59 -> 06 min. 56,237 | Q59: =tabula!Q59 -> 26 | R59: =tabula!R59 -> 16,009 sek.
C61: LIELDRAUGS ATBALSTĪTĀJI

Sheet raundi
B2: =CONCATENATE(tabula!C2," --> Raundu uzvarētāji") -> "Lielā viktorīna" (tiešsaistē / vebinārā) | 2024.gada 6.oktobris --> Raundu uzvarētāji
B3: # | C3: Raunda nosaukums | D3: Dalībnieks | E3: Rezultāts | F3: AVG | G3: MAX | H3: % no max
B4: 1 | C4: =TRANSPOSE(tabula!E4:N4) -> Pavediens | D4: Virsskaņas alus iznīcinātājs | E4: 121 | F4: =TRANSPOSE(tabula!E6:N6) -> 76.8 | G4: =TRANSPOSE(tabula!E5:N5) -> 150 | H4: =E4/G4 -> 0.8066666667
B5: 2 | C5: Divas atbildes | D5: Bunkurs_13 | E5: 140 | F5: 74.5 | G5: 180 | H5: =E5/G5 -> 0.7777777778
B6: 3 | C6: Ekspresis | D6: Kaulini | E6: 146 | F6: 76.5 | G6: 180 | H6: 0.8111111111
B7: 4 | C7: Burtu mīkla | D7: HektoraKristaps | E7: 121 | F7: 56.9 | G7: 150 | H7: 0.8066666667
B8: 5 | C8: Ķēde | D8: Pundurplanēta | E8: 159 | F8: 101.3 | G8: 175 | H8: 0.9085714286
B9: 6 | C9: Latvija | D9: VMR | E9: 116 | F9: 50.6 | G9: 150 | H9: 0.7733333333
B10: 7 | C10: Risks: Sporta veidu apraksti | D10: Bunkurs_13 | E10: 110 | F10: 31 | G10: 120 | H10: 0.9166666667
B11: 8 | C11: Kas kopīgs? | D11: Pundurplanēta | E11: 168 | F11: 91.6 | G11: 180 | H11: 0.9333333333
B12: 9 | C12: Liekais pazūd | Citāti | D12: VMR | E12: 147 | F12: 89.7 | G12: 150 | H12: 0.98
B13: 10 | C13: Audio | D13: Pretējās mājas Skaidrīte | E13: 133 | F13: 90.5 | G13: 150 | H13: 0.8866666667
B14: - | C14: Uzvarētājs | E14: =tabula!O7 -> 1206 | F14: =tabula!O6 -> 739.4 | G14: =SUM(G4:G13) -> 1585 | H14: =E14/G14 -> 0.7608832808
C15: =tabula!D7 -> Bunkurs_13
B17: LIELDRAUGS ATBALSTĪTĀJI
